Cogmind - Beta 14 @@@ ROGUE MODE // 2024.12.23 @ 23:53:39 Player: nado Result: Destroyed by S-10 Pest with Light Assault Rifle Performance ------------- Evolutions (0) 0 Regions Visited (4) 800 Robots Destroyed (21) 105 Value Destroyed (564) 564 Prototype IDs (2) 40 Alien Tech Used (0) 0 Bonus (346) 346 TOTAL SCORE: 1855 Bonus ------- Follower Combat Kills 46 Aligned with FarCom 300 Cogmind --------- Core Integrity 0/250 Matter 290/300 Energy 250/250 System Corruption 0% Temperature Cool (0) Movement Rolling (140) Ox4 Location -9/Mines Parts ------- > --- POWER (1) -------- Ion Engine > --- PROPULSION (2) --- Wheel Wheel > --- UTILITY (2) ------ Improved Heat Sink Huge Storage Unit > --- WEAPON (2) ------- Light Assault Rifle Light Assault Rifle > --- INVENTORY (25) --- Ion Engine Light Ion Engine Light Nuclear Core Light Nuclear Core Light Nuclear Core Light Treads Aluminum Leg Aluminum Leg Flexi-carbon Leg Flying Fortress v7 Heat Sink Improved Heat Sink Huge Storage Unit Signal Interpreter Signal Interpreter ECM Suite Tractor Beam Light Assault Rifle Light Assault Rifle Light Cannon Light Cannon Grenade Launcher Peak State ------------ > --- POWER ------------ Ion Engine > --- PROPULSION ------- Wheel Wheel > --- UTILITY ---------- Improved Heat Sink Huge Storage Unit > --- WEAPON ----------- Light Assault Rifle Light Assault Rifle > --- INVENTORY -------- Ion Engine Light Ion Engine Light Nuclear Core Light Nuclear Core Light Nuclear Core Light Treads Aluminum Leg Aluminum Leg Flexi-carbon Leg Flying Fortress v7 Heat Sink Improved Heat Sink Huge Storage Unit Signal Interpreter Signal Interpreter ECM Suite Tractor Beam Light Assault Rifle Light Assault Rifle Light Cannon Light Cannon Grenade Launcher [Rating: 15] Favorites ----------- Power Light Ion Engine Engine Light Ion Engine Propulsion Wheel Treads Light Treads Wheel Wheel Utility Huge Storage Unit Device Heat Sink Storage Huge Storage Unit Weapon Small Laser Energy Gun Small Laser Ballistic Gun Light Assault Rifle Ballistic Cannon Light Cannon Launcher Grenade Launcher Build | -11 -10 -10 -10 -9 ------- Run | Yrd Mat Min Exi Min Slots Evolved . | . . . . . Power . | . . . . . Propulsion . | . . . . . Utility . | . . . . . Weapon . | . . . . . Parts Attached 24 | 6 9 8 1 . Power 4 | 1 1 1 1 . Engine 4 | 1 1 1 1 . Core . | . . . . . Reactor . | . . . . . Propulsion 5 | 2 1 2 . . Treads 3 | 2 1 . . . Leg . | . . . . . Wheel 2 | . . 2 . . Hover . | . . . . . Flight . | . . . . . Utility 4 | 1 2 1 . . Device 2 | . 1 1 . . Storage 2 | 1 1 . . . Processor . | . . . . . Hackware . | . . . . . Protection . | . . . . . Artifact . | . . . . . Weapon 11 | 2 5 4 . . Energy Gun 6 | 1 4 1 . . Energy Cannon . | . . . . . Ballistic Gun 3 | 1 . 2 . . Ballistic Cannon 1 | . 1 . . . Launcher 1 | . . 1 . . Special Weapon . | . . . . . Impact Weapon . | . . . . . Slashing Weapon . | . . . . . Piercing Weapon . | . . . . . Special Melee Weapon . | . . . . . Unidentified Prototypes . | . . . . . Parts Lost 10 | . 5 5 . . Power 3 | . 2 1 . . Propulsion 2 | . 1 1 . . Utility 1 | . . 1 . . Weapon 4 | . 2 2 . . Highest Loss Streak 4 | . 2 4 . . To Critical Strikes . | . . . . . Average Slot Usage (%) 90 | . 96 82 89 . Engine 11 | . 13 10 4 . Treads 13 | . 28 . . . Wheel 14 | . . 26 28 . Device 8 | . 11 2 14 . Storage 14 | . 14 14 14 . Energy Gun 15 | . 17 20 . . Ballistic Gun 10 | . 7 5 28 . Ballistic Cannon 1 | . 2 . . . Peak Build Rating 15 | 6 8 11 15 15 Average Rating 8 | 3 7 8 12 15 On Entrance 7 | . 6 6 11 15 Naked Turns . | . . . . . Heaviest Build 89 | 14 88 89 88 88 Greatest Support 40 | 40 40 20 20 20 Greatest Overweight (x) 27 | . 4 27 4 4 Average Overweight (x) 3 | . 1 4 4 4 Largest Inventory Capacity 25 | 8 25 25 25 25 Average Capacity 23 | 6 22 25 25 25 Most Carried 25 | 4 16 25 25 25 Average Carried 15 | 2 8 21 24 25 Final Capacity 25 | 8 25 25 25 25 Final Carried 25 | 4 16 25 25 25 Class Distribution -------------------- 87% | Mutant 12% | Scavenger-Mutant Dominant Class ---------------- Mutant | -10/Materials Mutant | -10/Mines Mutant | -10/Exiles Mutant | -9/Mines Resources | -11 -10 -10 -10 -9 ----------- Run | Yrd Mat Min Exi Min Matter Collected 536 | 210 208 118 . . Remotely . | . . . . . Salvage Created 567 | . 382 185 . . Parts 51 | . 30 21 . . Haulers Intercepted 1 | . 1 . . . Recyclers Shooed 1 | . 1 . . . Parts Field Recycled . | . . . . . Retrieved Matter . | . . . . . Parts Self-Destructed . | . . . . . Prevented . | . . . . . Kills | -11 -10 -10 -10 -9 ------- Run | Yrd Mat Min Exi Min Combat Hostiles Destroyed 20 | . 10 10 . . Guns 16 | . 9 7 . . AOE 3 | . . 3 . . Classes Destroyed 4 | . 3 1 . . Hauler 1 | . 1 . . . Swarmer 9 | . 3 6 . . Grunt 10 | . 7 3 . . Demolisher 1 | . . 1 . . Best Kill Streak 5 | . 5 3 . . Combat Bots Only 5 | . 5 3 . . Max Kills in Single Turn 1 | . 1 1 . . Gunslinging . | . . . . . Exploded 1 | . . 1 . . Melee . | . . . . . Uniques/NPCs Destroyed . | . . . . . Combat | -11 -10 -10 -10 -9 -------- Run | Yrd Mat Min Exi Min Hostile Shots Fired 142 | . 89 48 . 5 Missed 40 | . 27 13 . . Damage Taken 1353 | . 825 484 . 44 Core 257 | . 133 115 . 9 Absorbed by Shields . | . . . . . Core Remaining (%) 100 | 100 . . . . Volleys Fired 59 | . 39 20 . . Largest 2 | . 2 2 . . Hottest 80 | . 60 80 . . Shots Fired 111 | . 72 39 . . Gun 108 | . 72 36 . . Cannon . | . . . . . Launcher 3 | . . 3 . . Special . | . . . . . Kinetic 46 | . 33 13 . . Thermal 46 | . 23 23 . . Explosive 3 | . . 3 . . Electromagnetic 16 | . 16 . . . Robot Hit Streak 16 | . 16 10 . . Robot Miss Streak 3 | . 3 3 . . Penetration Max . | . . . . . Secondary Targets . | . . . . . Shots Hit Robots 72 | . 51 21 . . Core Hits 34 | . 19 15 . . Critical Kills . | . . . . . Critical Parts Destroyed . | . . . . . Critical Strikes . | . . . . . Melee Attacks . | . . . . . Impact . | . . . . . Slashing . | . . . . . Piercing . | . . . . . Sneak Attacks . | . . . . . Combat Hostiles . | . . . . . Follow-up Attacks . | . . . . . Damage Inflicted 1147 | . 665 482 . . Guns 861 | . 648 213 . . Cannons . | . . . . . Explosions 237 | . . 237 . . Melee . | . . . . . Ramming 49 | . 17 32 . . Kinetic 357 | . 258 99 . . Thermal 324 | . 210 114 . . Explosive 237 | . . 237 . . Electromagnetic 180 | . 180 . . . Impact . | . . . . . Slashing . | . . . . . Piercing . | . . . . . Highest Corruption . | . . . . . Average Corruption . | . . . . . Corruption Purged . | . . . . . Corruption Blocked . | . . . . . Overload Shots . | . . . . . Overflow Damage 29 | . 3 26 . . Projectiles . | . . . . . Explosions 29 | . 3 26 . . Melee . | . . . . . Knockbacks 1 | . . 1 . . Impact 1 | . . 1 . . Kinetic . | . . . . . Secondary . | . . . . . Self-Inflicted Damage 113 | . 88 25 . . Shots 5 | . 4 1 . . Rammed 6 | . 4 2 . . Targets Rammed 6 | . 4 2 . . Kicked . | . . . . . Crushed . | . . . . . Highest Temperature 150 | . 150 39 . . Average Temperature 52 | . 84 18 . . Received Heat Transfer 528 | . 438 90 . . Siege Activations . | . . . . . Robots Corrupted 1 | . 1 . . . Combat Hostiles 1 | . 1 . . . Parts Fried 2 | . 2 . . . Impact Corruptions . | . . . . . Robots Melted . | . . . . . Combat Hostiles . | . . . . . Parts Melted . | . . . . . Heat Transferred 725 | . 475 250 . . Parts Sabotaged . | . . . . . Parts Stolen . | . . . . . Parts Stripped . | . . . . . Power Chain Reactions 1 | . 1 . . . Alert | -11 -10 -10 -10 -9 ------- Run | Yrd Mat Min Exi Min Peak Influence 216 | . 216 157 . 15 Initial . | . . . . . Average 47 | . 46 50 . 11 Maximum Alert Level 1 | . 1 . . . Low Security (%) 98 | 100 98 100 . 100 Level 1 1 | . 1 . . . Level 2 . | . . . . . Level 3 . | . . . . . Level 4 . | . . . . . Level 5 . | . . . . . High Security . | . . . . . Max Security . | . . . . . Squads Dispatched 4 | . 4 . . . Investigation 1 | . 1 . . . Extermination . | . . . . . Reinforcement 3 | . 3 . . . Assault . | . . . . . Garrison . | . . . . . Intercept . | . . . . . Searches Triggered . | . . . . . Construction Impeded . | . . . . . Haulers Reinforced . | . . . . . Active Scanning Responses . | . . . . . Cargo Convoy Interrupts . | . . . . . Stealth | -11 -10 -10 -10 -9 --------- Run | Yrd Mat Min Exi Min Distress Signals 1 | . 1 . . . Communications Jammed . | . . . . . Distress Signals . | . . . . . Times Spotted 42 | . 26 13 . 3 Peak Tracking Total 5 | . 5 3 . 3 Tactical Retreats 3 | . 1 2 . . Traps | -11 -10 -10 -10 -9 ------- Run | Yrd Mat Min Exi Min Traps Triggered 1 | . 1 . . . Indirectly . | . . . . . Trap Hack Attempts . | . . . . . Triggered . | . . . . . Disarmed . | . . . . . Reprogrammed . | . . . . . Reused . | . . . . . Traps Extracted . | . . . . . Installed . | . . . . . Triggered . | . . . . . Machines | -11 -10 -10 -10 -9 ---------- Run | Yrd Mat Min Exi Min Machines Disabled 4 | . 4 . . . Max in Single Turn 4 | . 4 . . . Machines Repaired . | . . . . . Machines Dismantled . | . . . . . Machines Sabotaged . | . . . . . Overloaded Fab Kills . | . . . . . Hacking | -11 -10 -10 -10 -9 --------- Run | Yrd Mat Min Exi Min Machines Accessed 4 | . 4 . . . Terminals 4 | . 4 . . . Fabricators . | . . . . . Repair Stations . | . . . . . Recycling Units . | . . . . . Scanalyzers . | . . . . . Garrison Access . | . . . . . Total Hacks 20 | . 20 . . . Successful 6 | . 6 . . . Failed 14 | . 14 . . . Catastrophic 1 | . 1 . . . Database Lockouts . | . . . . . Manual 18 | . 17 . 1 . Terminals 20 | . 20 . . . Fabricators . | . . . . . Repair Stations . | . . . . . Recycling Units . | . . . . . Scanalyzers . | . . . . . Garrison Access . | . . . . . Terminal Hacks 3 | . 3 . . . Prototype ID Bank 1 | . 1 . . . Branch Access Points 1 | . 1 . . . Terminal Index 1 | . 1 . . . Fabricator Hacks . | . . . . . Repair Station Hacks . | . . . . . Recycling Unit Hacks . | . . . . . Scanalyzer . | . . . . . Garrison Access Hacks . | . . . . . Unauthorized Hacks 3 | . 3 . . . Terminals 3 | . 3 . . . Botnet 3 | . 3 . . . Fabricators . | . . . . . Repair Stations . | . . . . . Recycling Units . | . . . . . Scanalyzers . | . . . . . Garrison Access . | . . . . . Data Cores Recovered . | . . . . . Used . | . . . . . Hacking Detections 4 | . 4 . . . Full Trace Events 1 | . 1 . . . Feedback Events . | . . . . . Feedback Blocked . | . . . . . Robot Schematics Acquired . | . . . . . Robots Built . | . . . . . Authchips . | . . . . . Time . | . . . . . Total Robot Build Rating . | . . . . . Part Schematics Acquired . | . . . . . Parts Built . | . . . . . Authchips . | . . . . . Time . | . . . . . Total Part Build Rating . | . . . . . Parts Repaired . | . . . . . Time . | . . . . . Parts Recycled . | . . . . . Recycled Matter . | . . . . . Retrieved Matter . | . . . . . Retrieved Components . | . . . . . Parts Scanalyzed . | . . . . . Part Schematics Acquired . | . . . . . Parts Damaged . | . . . . . Bothacking | -11 -10 -10 -10 -9 ------------ Run | Yrd Mat Min Exi Min Used RIF Installer . | . . . . . Robots Hacked . | . . . . . Non-combat . | . . . . . Combat . | . . . . . Robot Hacks Applied . | . . . . . Relay Couplers Released . | . . . . . Fabnet Peak Effective % . | . . . . . Robots Rewired . | . . . . . Allies Hacked . | . . . . . Hacks Repelled . | . . . . . Allies | -11 -10 -10 -10 -9 -------- Run | Yrd Mat Min Exi Min Total Allies 3 | . . 3 . . Largest Group 3 | . . 3 . . Highest-Rated Group 40 | . . 40 . . Highest-Rated Ally 16 | . . 16 . . Total Orders . | . . . . . Ally Attacks 21 | . . 21 . . Total Damage 108 | . . 108 . . Kills 4 | . . 4 . . Allies Corrupted . | . . . . . Allies Melted . | . . . . . Intel | -11 -10 -10 -10 -9 ------- Run | Yrd Mat Min Exi Min Robot Analysis Total . | . . . . . Derelict Logs Recovered 1 | . . 1 . . Drone Launches . | . . . . . Drone Recoveries . | . . . . . Exploration | -11 -10 -10 -10 -9 ------------- Run | Yrd Mat Min Exi Min Turns Passed 3737 | 87 1735 1270 641 4 Spaces Moved 1785 | 49 472 806 455 3 Core 6 | 3 . 3 . . Treads 519 | 46 472 1 . . Legs . | . . . . . Wheels 1260 | . . 802 455 3 Hover . | . . . . . Flight . | . . . . . Fastest Speed 50 | 50 160 140 140 140 Average Speed 183 | 153 294 145 140 140 Slowest Speed 1400 | 160 480 1400 140 140 Overloaded Moves . | . . . . . Propulsion Burnouts . | . . . . . Robots Hopped . | . . . . . Cave-ins Triggered . | . . . . . Exploration Rate (%) 53 | 4 81 98 77 6 Regions Visited 4 Branch Regions 3 Pre-discovered Areas 1 | . . 1 . . Known Exits Taken 1 | . 1 . . . Unknown Exits Taken 3 | 1 . 1 1 . Scrap Searched 3 | . . 3 . . Spaces Dug . | . . . . . Terrain Destroyed 21 | . 3 18 . . Melee . | . . . . . Projectile . | . . . . . AOE 21 | . 3 18 . . Terrain Rammed . | . . . . . Walls Destroyed . | . . . . . Machines Disabled . | . . . . . Actions | -11 -10 -10 -10 -9 --------- Run | Yrd Mat Min Exi Min Total 2128 | 58 738 869 460 3 Wait 221 | . 203 18 . . Move 1781 | 48 471 805 454 3 Hop . | . . . . . Pick Up 30 | 4 10 15 1 . Fast Attach 12 | 6 5 1 . . Attach 8 | . 2 5 1 . Detach 2 | . 2 . . . Swap 4 | . 2 2 . . Drop 4 | . . 1 3 . Fire 59 | . 39 20 . . Melee . | . . . . . Ram 2 | . . 2 . . Kick . | . . . . . Crush 4 | . 4 . . . Escape Stasis . | . . . . . Rewire 1 | . . . 1 . Trap . | . . . . . Miscellaneous . | . . . . . Route ------- -11/Scrapyard -10/Materials (discovered 4 exits: [*Mat x3] / *Min) -10/Mines (discovered 3 exits: [*Mat x2] / *Exi) -10/Exiles -9/Mines History --------- Turn | Location | Event 44 | -11/Scrapyard | Discovered new exit (range 16) 88 | -11/Scrapyard | Entered Materials 317 | -10/Materials | Build established: Mutant 720 | -10/Materials | Discovered new exit (range 9) 826 | -10/Materials | Identified exit to Mines 1314 | -10/Materials | Build established: Scavenger-Mutant 1344 | -10/Materials | Discovered new exit (range 15) 1466 | -10/Materials | Discovered new exit (range 15) 1788 | -10/Materials | Build established: Mutant 1813 | -10/Materials | Core integrity fell below 50% 1823 | -10/Materials | Entered Mines 1864 | -10/Mines | Lost 4 parts (1p2n1u) 1901 | -10/Mines | Assembled infested the area 1906 | -10/Mines | Assisted by a Guerilla fighting off Assembled 2210 | -10/Mines | Found a hidden stash of uninstalled traps 2259 | -10/Mines | Learned Materials stockpile data 2303 | -10/Mines | Learned location of Storage (-7) 2343 | -10/Mines | Discovered new exit (range 7) 2358 | -10/Mines | Assisted by bots powering up and referring to "LRC-V3" 2441 | -10/Mines | Deemed a non-threat by the Exiles lab entrance 2441 | -10/Mines | Discovered new exit (range 5) 2799 | -10/Mines | Discovered new exit (range 16) 2856 | -10/Mines | Core integrity fell below 20% 3093 | -10/Mines | Entered Exiles 3114 | -10/Exiles | Discovered new exit (range 15) 3131 | -10/Exiles | Met 8R-AWN 3151 | -10/Exiles | Met EX-HEX 3222 | -10/Exiles | Met EX-DEC 3245 | -10/Exiles | Visited The Gauntlet 3453 | -10/Exiles | Met EX-BIN 3470 | -10/Exiles | Aligned with FarCom system 3471 | -10/Exiles | Given EX-Vault access code 3512 | -10/Exiles | Opened EX-Vault 3538 | -10/Exiles | Found Prototype Flight Unit 3564 | -10/Exiles | Warned to stay clear of 0b10 Research branches 3734 | -10/Exiles | Left Exiles lab with Flying Fortress v7 3734 | -10/Exiles | Entered Mines 3738 | -9/Mines | Destroyed by S-10 Pest with Light Assault Rifle Last Messages --------------- to take all of those and it just counts as your one! 03512_ Connecting with EX-Vault Access... 03512_ Current location identified: Exiles 03536_ Dropped Sml. Storage Unit. 03537_ Dropped Heat Sink. 03538_ Dropped Sml. Laser. 03538_ Acquired Prototype Flight Unit. EX-BIN: Oh yeah, I'd suggest you stay away from the 0b10 Research branches, since the FarCom signals could be picked up there, but you're welcome to try if you really want to. And if we have to leave here due to unforeseen circumstances, don't worry the FarCom system will continue to maintain contact via our distributed network. EX-BIN: And don't even think about spreading that code around. We're gonna change it right after you leave. Most certainly not to something like 1234 which I did last time as a little joke and some thief managed to sneak in here and steal a few of HEX's prototypes. LOCATION=UNKNOWN GOAL=ESCAPE 03734_ Receiving FarCom transmissions... Map ----- +----------------------------------------------------+ | ?????????????????????????????????????????????????? | | ?????????????????????????????????????????????????? | | ?????????????????????????????????????????????????? | | ?????????????????????????????????????????????????? | | ?????????????????????????????????????????????????? | | ?????????????????????????????????????????????????? | | ?????????????????????????????????????????????????? | | ?????????????????????????????????????????????????? | | ?????????????????????????????????????????????????? | | ?????????????????????????????????????????????????? | | ?????????????????????????????????????????????????? | | ???????????????????????? ????????????????????????? | | ???????????????????????? ????????????????????????? | | ???????????????????????? ????????????????????????? | | ???????????????????????? ????????????????????????? | | ???????????????????????? ????????????????????????? | | ???????????????????????? ????????????????????????? | | ???????????????????????? ????????????????????????? | | ???????????????????????? ##??????????????????????? | | ???????????????????????? #??????????????????????? | | ????????????????????????# #??????????????????????? | | ????????????????????????# ??????????????????????? | | ????????????????????????# #??????????????????????? | | ????????????????????????# #??????????????????????? | | ?????????????############ ##?????????????????????? | | ?????????????# s @ #?????????????????????? | | ???????????????""" """ #?????????????????????? | | ????????????????"" """ #?????????????????????? | | ????????????????"" """ #?????????????????????? | | ?????????????# s #?????????????????????? | | ?????????????# """ """s""" #?????????????????????? | | ???????????????""" """ """ #?????????????????????? | | ????????????????"" """ """ #?????????????????????? | | ???????????????? #?????????????????????? | | ?????????????????" """ """ #?????????????????????? | | ?????????????????" """ """ #?????????????????????? | | ?????????????????? ?"" ??? #?????????????????????? | | ?????????????????????????? #?????????????????????? | | ?????????????????????????????????????????????????? | | ?????????????????????????????????????????????????? | | ?????????????????????????????????????????????????? | | ?????????????????????????????????????????????????? | | ?????????????????????????????????????????????????? | | ?????????????????????????????????????????????????? | | ?????????????????????????????????????????????????? | | ?????????????????????????????????????????????????? | | ?????????????????????????????????????????????????? | | ?????????????????????????????????????????????????? | | ?????????????????????????????????????????????????? | | ?????????????????????????????????????????????????? | +----------------------------------------------------+ Best States ------------- Heat Dissipation 39 Energy Generation 10 Energy Capacity 250 Matter Stores 300 Matter Capacity 300 Sight Range 16 Terrain Scan Density 10 Evasion (%) 40 Recoil Reduction 2 Item Schematics ----------------- None Robot Schematics ------------------ None Fabricated ------------ Nothing Alien Tech Used ----------------- None Achievements -------------- None Challenges ------------ None Game ------ Seed TerrainCryofiberClaws Manual? 0 Play Time 00:29:08 Cumulative 49.0 hours Start 2024.12.23 @ 23:02:01 End 2024.12.23 @ 23:53:39 Sessions 1 Manual Loads 0 Difficulty Rogue Special Mode None Game No. 34 Rogue 34 Adventurer 0 Explorer 0 Win Type - Total 0 Types 0/0/0/0/0/0/0/0/0 Lore% 18 Gallery% 28 Achievement% 26 Wizard Run 0 Options --------- Layout 0 ASCII 0 Keyboard 1 Movement Arrows Keybinds 0 Fullscreen 2 Font 18/Terminus Map View 76x50 Zoom Use 0% Tactical HUD 1 Map Filters NONE Filters NONE Steam 1 RUN: 94119fed-484c-4bd2-a15e-378f331bcfd2